{"text_format":"3","workbook":"xlsx","n_sheets":3,"sheets":["Dados de Clientes em Potencial","Vendas Previstas ","Previsão Ponderada Mensal"],"not_rendered":{"charts":1,"images":2,"defined_names":9},"read":"whole","date_system":"1900"}

{"sheet":"Dados de Clientes em Potencial","index":0,"n_rows":10,"n_cols":10,"rows_kept":10,"merged":[[2,1,2,2],[3,4,3,8],[4,1,4,8]]}
[]
[]
[null,"Rastreador detalhado de clientes em potencial"]
[null,{"$f":"TODAY()","v":"2019-10-18"}]
[null,"Nome da empresa\t\t\t\t\t\t\t\t\t\t",{"$nulls":7},"CONFIDENCIAL"]
[null,"Nome do cliente em potencial","Contato do cliente em potencial","Cliente em potencial \nFonte","Cliente em potencial \nRegião","Cliente em potencial \nTipo","Possível oportunidade","Probabilidade \nde venda","Previsão \nFechada em","Ponderada \nPrevisão"]
[null,"Adatum Corporation",null,"Site","Norte","Estratégico",{"v":300000,"d":"R$ 300,000.00"},{"v":0.9,"d":"90%"},"Janeiro",{"$f":"IFERROR(IF(DadosClientesPotencial[[#This Row],[Probabilidade \nde venda]]<>\"\",DadosClientesPotencial[[#This Row],[Probabilidade \nde venda]]*DadosClientesPotencial[[#This Row],[Possível oportunidade]],\"\"),\"\")","v":{"v":270000,"d":"R$ 270,000.00"}}]
[null,"Adventure Works",null,"Eventos de rede profissional","Sul","Estratégico",{"v":200000,"d":"R$ 200,000.00"},{"v":0.1,"d":"10%"},"Fevereiro",{"$f":"IFERROR(IF(DadosClientesPotencial[[#This Row],[Probabilidade \nde venda]]<>\"\",DadosClientesPotencial[[#This Row],[Probabilidade \nde venda]]*DadosClientesPotencial[[#This Row],[Possível oportunidade]],\"\"),\"\")","v":{"v":20000,"d":"R$ 20,000.00"}}]
[null,"Alpine Ski House",null,"Eventos de rede profissional","Norte","Tático",{"v":100000,"d":"R$ 100,000.00"},{"v":0.2,"d":"20%"},"Março",{"$f":"IFERROR(IF(DadosClientesPotencial[[#This Row],[Probabilidade \nde venda]]<>\"\",DadosClientesPotencial[[#This Row],[Probabilidade \nde venda]]*DadosClientesPotencial[[#This Row],[Possível oportunidade]],\"\"),\"\")","v":{"v":20000,"d":"R$ 20,000.00"}}]
[null,"Total",{"$nulls":4},{"$f":"SUBTOTAL(109,DadosClientesPotencial[Possível oportunidade])","v":{"v":600000,"d":"R$ 600,000.00"}},null,null,{"$f":"SUBTOTAL(109,DadosClientesPotencial[Ponderada \nPrevisão])","v":{"v":310000,"d":"R$ 310,000.00"}}]

{"sheet":"Vendas Previstas ","index":1,"n_rows":15,"n_cols":14,"rows_kept":15,"merged":[[0,5,0,9],[2,1,2,2],[4,1,4,11],[4,12,4,13]]}
[]
[]
[null,"Vendas Previstas"]
[null,{"$f":"DataMonitor","v":"2019-10-18"}]
[null,{"$f":"'Dados de Clientes em Potencial'!B5:I5","v":"Nome da empresa\t\t\t\t\t\t\t\t\t\t"},{"$nulls":10},"CONFIDENCIAL"]
[null,"Nome do cliente em potencial","Janeiro \nPrevisão","Fevereiro \nPrevisão","Março \nPrevisão","Abril \nPrevisão","Maio \nPrevisão","Junho \nPrevisão","Julho \nPrevisão","Agosto \nPrevisão","Setembro \nPrevisão","Outubro \nPrevisão","Novembro \nPrevisão","Dezembro \nPrevisão"]
[null,{"$f":"IFERROR(_xlfn.SINGLE(IF(AND(DadosClientesPotencial[[#This Row],[Nome do cliente em potencial]] <> \"\",_xlfn.SINGLE( ROW(PrevisãoVendas[Nome do cliente em potencial]))<>Linha_inicial),DadosClientesPotencial[Nome do cliente em potencial], \"\")),\"\")","v":"Adatum Corporation"},{"$f":"IFERROR(IF(DadosClientesPotencial[[#This Row],[Previsão \nFechada em]] <>\"\",IF(DadosClientesPotencial[[#This Row],[Previsão \nFechada em]] = \"Janeiro\",DadosClientesPotencial[Ponderada \nPrevisão],0),\"\"),\"\")","v":{"v":270000,"d":"R$ 270,000"}},{"$f":"IFERROR(IF(DadosClientesPotencial[[#This Row],[Previsão \nFechada em]] <>\"\",IF(DadosClientesPotencial[[#This Row],[Previsão \nFechada em]] = \"Fevereiro\",DadosClientesPotencial[Ponderada \nPrevisão],0),\"\"),\"\")","v":{"v":0,"d":"R$ 0"}},{"$f":"IFERROR(IF(DadosClientesPotencial[[#This Row],[Previsão \nFechada em]] <>\"\",IF(DadosClientesPotencial[[#This Row],[Previsão \nFechada em]] = \"Março\",DadosClientesPotencial[Ponderada \nPrevisão],0),\"\"),\"\")","v":{"v":0,"d":"R$ 0"}},{"$f":"IFERROR(IF(DadosClientesPotencial[[#This Row],[Previsão \nFechada em]] <>\"\",IF(DadosClientesPotencial[[#This Row],[Previsão \nFechada em]] = \"Abril\",DadosClientesPotencial[Ponderada \nPrevisão],0),\"\"),\"\")","v":{"v":0,"d":"R$ 0"}},{"$f":"IFERROR(IF(DadosClientesPotencial[[#This Row],[Previsão \nFechada em]] <>\"\",IF(DadosClientesPotencial[[#This Row],[Previsão \nFechada em]] = \"Maio\",DadosClientesPotencial[Ponderada \nPrevisão],0),\"\"),\"\")","v":{"v":0,"d":"R$ 0"}},{"$f":"IFERROR(IF(DadosClientesPotencial[[#This Row],[Previsão \nFechada em]] <>\"\",IF(DadosClientesPotencial[[#This Row],[Previsão \nFechada em]] = \"Junho\",DadosClientesPotencial[Ponderada \nPrevisão],0),\"\"),\"\")","v":{"v":0,"d":"R$ 0"}},{"$f":"IFERROR(IF(DadosClientesPotencial[[#This Row],[Previsão \nFechada em]] <>\"\",IF(DadosClientesPotencial[[#This Row],[Previsão \nFechada em]] = \"Julho\",DadosClientesPotencial[Ponderada \nPrevisão],0),\"\"),\"\")","v":{"v":0,"d":"R$ 0"}},{"$f":"IFERROR(IF(DadosClientesPotencial[[#This Row],[Previsão \nFechada em]] <>\"\",IF(DadosClientesPotencial[[#This Row],[Previsão \nFechada em]] = \"Agosto\",DadosClientesPotencial[Ponderada \nPrevisão],0),\"\"),\"\")","v":{"v":0,"d":"R$ 0"}},{"$f":"IFERROR(IF(DadosClientesPotencial[[#This Row],[Previsão \nFechada em]] <>\"\",IF(DadosClientesPotencial[[#This Row],[Previsão \nFechada em]] = \"Setembro\",DadosClientesPotencial[Ponderada \nPrevisão],0),\"\"),\"\")","v":{"v":0,"d":"R$ 0"}},{"$f":"IFERROR(IF(DadosClientesPotencial[[#This Row],[Previsão \nFechada em]] <>\"\",IF(DadosClientesPotencial[[#This Row],[Previsão \nFechada em]] = \"Outubro\",DadosClientesPotencial[Ponderada \nPrevisão],0),\"\"),\"\")","v":{"v":0,"d":"R$ 0"}},{"$f":"IFERROR(IF(DadosClientesPotencial[[#This Row],[Previsão \nFechada em]] <>\"\",IF(DadosClientesPotencial[[#This Row],[Previsão \nFechada em]] = \"Novembro\",DadosClientesPotencial[Ponderada \nPrevisão],0),\"\"),\"\")","v":{"v":0,"d":"R$ 0"}},{"$f":"IFERROR(IF(DadosClientesPotencial[[#This Row],[Previsão \nFechada em]] <>\"\",IF(DadosClientesPotencial[[#This Row],[Previsão \nFechada em]] = \"Dezembro\",DadosClientesPotencial[Ponderada \nPrevisão],0),\"\"),\"\")","v":{"v":0,"d":"R$ 0"}}]
[null,{"$f":"IFERROR(_xlfn.SINGLE(IF(AND(DadosClientesPotencial[[#This Row],[Nome do cliente em potencial]] <> \"\",_xlfn.SINGLE( ROW(PrevisãoVendas[Nome do cliente em potencial]))<>Linha_inicial),DadosClientesPotencial[Nome do cliente em potencial], \"\")),\"\")","v":"Adventure Works"},{"$f":"IFERROR(IF(DadosClientesPotencial[[#This Row],[Previsão \nFechada em]] <>\"\",IF(DadosClientesPotencial[[#This Row],[Previsão \nFechada em]] = \"Janeiro\",DadosClientesPotencial[Ponderada \nPrevisão],0),\"\"),\"\")","v":{"v":0,"d":"R$ 0"}},{"$f":"IFERROR(IF(DadosClientesPotencial[[#This Row],[Previsão \nFechada em]] <>\"\",IF(DadosClientesPotencial[[#This Row],[Previsão \nFechada em]] = \"Fevereiro\",DadosClientesPotencial[Ponderada \nPrevisão],0),\"\"),\"\")","v":{"v":20000,"d":"R$ 20,000"}},{"$f":"IFERROR(IF(DadosClientesPotencial[[#This Row],[Previsão \nFechada em]] <>\"\",IF(DadosClientesPotencial[[#This Row],[Previsão \nFechada em]] = \"Março\",DadosClientesPotencial[Ponderada \nPrevisão],0),\"\"),\"\")","v":{"v":0,"d":"R$ 0"}},{"$f":"IFERROR(IF(DadosClientesPotencial[[#This Row],[Previsão \nFechada em]] <>\"\",IF(DadosClientesPotencial[[#This Row],[Previsão \nFechada em]] = \"Abril\",DadosClientesPotencial[Ponderada \nPrevisão],0),\"\"),\"\")","v":{"v":0,"d":"R$ 0"}},{"$f":"IFERROR(IF(DadosClientesPotencial[[#This Row],[Previsão \nFechada em]] <>\"\",IF(DadosClientesPotencial[[#This Row],[Previsão \nFechada em]] = \"Maio\",DadosClientesPotencial[Ponderada \nPrevisão],0),\"\"),\"\")","v":{"v":0,"d":"R$ 0"}},{"$f":"IFERROR(IF(DadosClientesPotencial[[#This Row],[Previsão \nFechada em]] <>\"\",IF(DadosClientesPotencial[[#This Row],[Previsão \nFechada em]] = \"Junho\",DadosClientesPotencial[Ponderada \nPrevisão],0),\"\"),\"\")","v":{"v":0,"d":"R$ 0"}},{"$f":"IFERROR(IF(DadosClientesPotencial[[#This Row],[Previsão \nFechada em]] <>\"\",IF(DadosClientesPotencial[[#This Row],[Previsão \nFechada em]] = \"Julho\",DadosClientesPotencial[Ponderada \nPrevisão],0),\"\"),\"\")","v":{"v":0,"d":"R$ 0"}},{"$f":"IFERROR(IF(DadosClientesPotencial[[#This Row],[Previsão \nFechada em]] <>\"\",IF(DadosClientesPotencial[[#This Row],[Previsão \nFechada em]] = \"Agosto\",DadosClientesPotencial[Ponderada \nPrevisão],0),\"\"),\"\")","v":{"v":0,"d":"R$ 0"}},{"$f":"IFERROR(IF(DadosClientesPotencial[[#This Row],[Previsão \nFechada em]] <>\"\",IF(DadosClientesPotencial[[#This Row],[Previsão \nFechada em]] = \"Setembro\",DadosClientesPotencial[Ponderada \nPrevisão],0),\"\"),\"\")","v":{"v":0,"d":"R$ 0"}},{"$f":"IFERROR(IF(DadosClientesPotencial[[#This Row],[Previsão \nFechada em]] <>\"\",IF(DadosClientesPotencial[[#This Row],[Previsão \nFechada em]] = \"Outubro\",DadosClientesPotencial[Ponderada \nPrevisão],0),\"\"),\"\")","v":{"v":0,"d":"R$ 0"}},{"$f":"IFERROR(IF(DadosClientesPotencial[[#This Row],[Previsão \nFechada em]] <>\"\",IF(DadosClientesPotencial[[#This Row],[Previsão \nFechada em]] = \"Novembro\",DadosClientesPotencial[Ponderada \nPrevisão],0),\"\"),\"\")","v":{"v":0,"d":"R$ 0"}},{"$f":"IFERROR(IF(DadosClientesPotencial[[#This Row],[Previsão \nFechada em]] <>\"\",IF(DadosClientesPotencial[[#This Row],[Previsão \nFechada em]] = \"Dezembro\",DadosClientesPotencial[Ponderada \nPrevisão],0),\"\"),\"\")","v":{"v":0,"d":"R$ 0"}}]
[null,{"$f":"IFERROR(_xlfn.SINGLE(IF(AND(DadosClientesPotencial[[#This Row],[Nome do cliente em potencial]] <> \"\",_xlfn.SINGLE( ROW(PrevisãoVendas[Nome do cliente em potencial]))<>Linha_inicial),DadosClientesPotencial[Nome do cliente em potencial], \"\")),\"\")","v":"Alpine Ski House"},{"$f":"IFERROR(IF(DadosClientesPotencial[[#This Row],[Previsão \nFechada em]] <>\"\",IF(DadosClientesPotencial[[#This Row],[Previsão \nFechada em]] = \"Janeiro\",DadosClientesPotencial[Ponderada \nPrevisão],0),\"\"),\"\")","v":{"v":0,"d":"R$ 0"}},{"$f":"IFERROR(IF(DadosClientesPotencial[[#This Row],[Previsão \nFechada em]] <>\"\",IF(DadosClientesPotencial[[#This Row],[Previsão \nFechada em]] = \"Fevereiro\",DadosClientesPotencial[Ponderada \nPrevisão],0),\"\"),\"\")","v":{"v":0,"d":"R$ 0"}},{"$f":"IFERROR(IF(DadosClientesPotencial[[#This Row],[Previsão \nFechada em]] <>\"\",IF(DadosClientesPotencial[[#This Row],[Previsão \nFechada em]] = \"Março\",DadosClientesPotencial[Ponderada \nPrevisão],0),\"\"),\"\")","v":{"v":20000,"d":"R$ 20,000"}},{"$f":"IFERROR(IF(DadosClientesPotencial[[#This Row],[Previsão \nFechada em]] <>\"\",IF(DadosClientesPotencial[[#This Row],[Previsão \nFechada em]] = \"Abril\",DadosClientesPotencial[Ponderada \nPrevisão],0),\"\"),\"\")","v":{"v":0,"d":"R$ 0"}},{"$f":"IFERROR(IF(DadosClientesPotencial[[#This Row],[Previsão \nFechada em]] <>\"\",IF(DadosClientesPotencial[[#This Row],[Previsão \nFechada em]] = \"Maio\",DadosClientesPotencial[Ponderada \nPrevisão],0),\"\"),\"\")","v":{"v":0,"d":"R$ 0"}},{"$f":"IFERROR(IF(DadosClientesPotencial[[#This Row],[Previsão \nFechada em]] <>\"\",IF(DadosClientesPotencial[[#This Row],[Previsão \nFechada em]] = \"Junho\",DadosClientesPotencial[Ponderada \nPrevisão],0),\"\"),\"\")","v":{"v":0,"d":"R$ 0"}},{"$f":"IFERROR(IF(DadosClientesPotencial[[#This Row],[Previsão \nFechada em]] <>\"\",IF(DadosClientesPotencial[[#This Row],[Previsão \nFechada em]] = \"Julho\",DadosClientesPotencial[Ponderada \nPrevisão],0),\"\"),\"\")","v":{"v":0,"d":"R$ 0"}},{"$f":"IFERROR(IF(DadosClientesPotencial[[#This Row],[Previsão \nFechada em]] <>\"\",IF(DadosClientesPotencial[[#This Row],[Previsão \nFechada em]] = \"Agosto\",DadosClientesPotencial[Ponderada \nPrevisão],0),\"\"),\"\")","v":{"v":0,"d":"R$ 0"}},{"$f":"IFERROR(IF(DadosClientesPotencial[[#This Row],[Previsão \nFechada em]] <>\"\",IF(DadosClientesPotencial[[#This Row],[Previsão \nFechada em]] = \"Setembro\",DadosClientesPotencial[Ponderada \nPrevisão],0),\"\"),\"\")","v":{"v":0,"d":"R$ 0"}},{"$f":"IFERROR(IF(DadosClientesPotencial[[#This Row],[Previsão \nFechada em]] <>\"\",IF(DadosClientesPotencial[[#This Row],[Previsão \nFechada em]] = \"Outubro\",DadosClientesPotencial[Ponderada \nPrevisão],0),\"\"),\"\")","v":{"v":0,"d":"R$ 0"}},{"$f":"IFERROR(IF(DadosClientesPotencial[[#This Row],[Previsão \nFechada em]] <>\"\",IF(DadosClientesPotencial[[#This Row],[Previsão \nFechada em]] = \"Novembro\",DadosClientesPotencial[Ponderada \nPrevisão],0),\"\"),\"\")","v":{"v":0,"d":"R$ 0"}},{"$f":"IFERROR(IF(DadosClientesPotencial[[#This Row],[Previsão \nFechada em]] <>\"\",IF(DadosClientesPotencial[[#This Row],[Previsão \nFechada em]] = \"Dezembro\",DadosClientesPotencial[Ponderada \nPrevisão],0),\"\"),\"\")","v":{"v":0,"d":"R$ 0"}}]
[null,{"$f":"IFERROR(_xlfn.SINGLE(IF(AND(DadosClientesPotencial[[#This Row],[Nome do cliente em potencial]] <> \"\",_xlfn.SINGLE( ROW(PrevisãoVendas[Nome do cliente em potencial]))<>Linha_inicial),DadosClientesPotencial[Nome do cliente em potencial], \"\")),\"\")","v":""},{"$f":"IFERROR(IF(DadosClientesPotencial[[#This Row],[Previsão \nFechada em]] <>\"\",IF(DadosClientesPotencial[[#This Row],[Previsão \nFechada em]] = \"Janeiro\",DadosClientesPotencial[Ponderada \nPrevisão],0),\"\"),\"\")","v":""},{"$f":"IFERROR(IF(DadosClientesPotencial[[#This Row],[Previsão \nFechada em]] <>\"\",IF(DadosClientesPotencial[[#This Row],[Previsão \nFechada em]] = \"Fevereiro\",DadosClientesPotencial[Ponderada \nPrevisão],0),\"\"),\"\")","v":""},{"$f":"IFERROR(IF(DadosClientesPotencial[[#This Row],[Previsão \nFechada em]] <>\"\",IF(DadosClientesPotencial[[#This Row],[Previsão \nFechada em]] = \"Março\",DadosClientesPotencial[Ponderada \nPrevisão],0),\"\"),\"\")","v":""},{"$f":"IFERROR(IF(DadosClientesPotencial[[#This Row],[Previsão \nFechada em]] <>\"\",IF(DadosClientesPotencial[[#This Row],[Previsão \nFechada em]] = \"Abril\",DadosClientesPotencial[Ponderada \nPrevisão],0),\"\"),\"\")","v":""},{"$f":"IFERROR(IF(DadosClientesPotencial[[#This Row],[Previsão \nFechada em]] <>\"\",IF(DadosClientesPotencial[[#This Row],[Previsão \nFechada em]] = \"Maio\",DadosClientesPotencial[Ponderada \nPrevisão],0),\"\"),\"\")","v":""},{"$f":"IFERROR(IF(DadosClientesPotencial[[#This Row],[Previsão \nFechada em]] <>\"\",IF(DadosClientesPotencial[[#This Row],[Previsão \nFechada em]] = \"Junho\",DadosClientesPotencial[Ponderada \nPrevisão],0),\"\"),\"\")","v":""},{"$f":"IFERROR(IF(DadosClientesPotencial[[#This Row],[Previsão \nFechada em]] <>\"\",IF(DadosClientesPotencial[[#This Row],[Previsão \nFechada em]] = \"Julho\",DadosClientesPotencial[Ponderada \nPrevisão],0),\"\"),\"\")","v":""},{"$f":"IFERROR(IF(DadosClientesPotencial[[#This Row],[Previsão \nFechada em]] <>\"\",IF(DadosClientesPotencial[[#This Row],[Previsão \nFechada em]] = \"Agosto\",DadosClientesPotencial[Ponderada \nPrevisão],0),\"\"),\"\")","v":""},{"$f":"IFERROR(IF(DadosClientesPotencial[[#This Row],[Previsão \nFechada em]] <>\"\",IF(DadosClientesPotencial[[#This Row],[Previsão \nFechada em]] = \"Setembro\",DadosClientesPotencial[Ponderada \nPrevisão],0),\"\"),\"\")","v":""},{"$f":"IFERROR(IF(DadosClientesPotencial[[#This Row],[Previsão \nFechada em]] <>\"\",IF(DadosClientesPotencial[[#This Row],[Previsão \nFechada em]] = \"Outubro\",DadosClientesPotencial[Ponderada \nPrevisão],0),\"\"),\"\")","v":""},{"$f":"IFERROR(IF(DadosClientesPotencial[[#This Row],[Previsão \nFechada em]] <>\"\",IF(DadosClientesPotencial[[#This Row],[Previsão \nFechada em]] = \"Novembro\",DadosClientesPotencial[Ponderada \nPrevisão],0),\"\"),\"\")","v":""},{"$f":"IFERROR(IF(DadosClientesPotencial[[#This Row],[Previsão \nFechada em]] <>\"\",IF(DadosClientesPotencial[[#This Row],[Previsão \nFechada em]] = \"Dezembro\",DadosClientesPotencial[Ponderada \nPrevisão],0),\"\"),\"\")","v":""}]
[null,{"$f":"IFERROR(_xlfn.SINGLE(IF(AND(DadosClientesPotencial[[#This Row],[Nome do cliente em potencial]] <> \"\",_xlfn.SINGLE( ROW(PrevisãoVendas[Nome do cliente em potencial]))<>Linha_inicial),DadosClientesPotencial[Nome do cliente em potencial], \"\")),\"\")","v":""},{"$f":"IFERROR(IF(DadosClientesPotencial[[#This Row],[Previsão \nFechada em]] <>\"\",IF(DadosClientesPotencial[[#This Row],[Previsão \nFechada em]] = \"Janeiro\",DadosClientesPotencial[Ponderada \nPrevisão],0),\"\"),\"\")","v":""},{"$f":"IFERROR(IF(DadosClientesPotencial[[#This Row],[Previsão \nFechada em]] <>\"\",IF(DadosClientesPotencial[[#This Row],[Previsão \nFechada em]] = \"Fevereiro\",DadosClientesPotencial[Ponderada \nPrevisão],0),\"\"),\"\")","v":""},{"$f":"IFERROR(IF(DadosClientesPotencial[[#This Row],[Previsão \nFechada em]] <>\"\",IF(DadosClientesPotencial[[#This Row],[Previsão \nFechada em]] = \"Março\",DadosClientesPotencial[Ponderada \nPrevisão],0),\"\"),\"\")","v":""},{"$f":"IFERROR(IF(DadosClientesPotencial[[#This Row],[Previsão \nFechada em]] <>\"\",IF(DadosClientesPotencial[[#This Row],[Previsão \nFechada em]] = \"Abril\",DadosClientesPotencial[Ponderada \nPrevisão],0),\"\"),\"\")","v":""},{"$f":"IFERROR(IF(DadosClientesPotencial[[#This Row],[Previsão \nFechada em]] <>\"\",IF(DadosClientesPotencial[[#This Row],[Previsão \nFechada em]] = \"Maio\",DadosClientesPotencial[Ponderada \nPrevisão],0),\"\"),\"\")","v":""},{"$f":"IFERROR(IF(DadosClientesPotencial[[#This Row],[Previsão \nFechada em]] <>\"\",IF(DadosClientesPotencial[[#This Row],[Previsão \nFechada em]] = \"Junho\",DadosClientesPotencial[Ponderada \nPrevisão],0),\"\"),\"\")","v":""},{"$f":"IFERROR(IF(DadosClientesPotencial[[#This Row],[Previsão \nFechada em]] <>\"\",IF(DadosClientesPotencial[[#This Row],[Previsão \nFechada em]] = \"Julho\",DadosClientesPotencial[Ponderada \nPrevisão],0),\"\"),\"\")","v":""},{"$f":"IFERROR(IF(DadosClientesPotencial[[#This Row],[Previsão \nFechada em]] <>\"\",IF(DadosClientesPotencial[[#This Row],[Previsão \nFechada em]] = \"Agosto\",DadosClientesPotencial[Ponderada \nPrevisão],0),\"\"),\"\")","v":""},{"$f":"IFERROR(IF(DadosClientesPotencial[[#This Row],[Previsão \nFechada em]] <>\"\",IF(DadosClientesPotencial[[#This Row],[Previsão \nFechada em]] = \"Setembro\",DadosClientesPotencial[Ponderada \nPrevisão],0),\"\"),\"\")","v":""},{"$f":"IFERROR(IF(DadosClientesPotencial[[#This Row],[Previsão \nFechada em]] <>\"\",IF(DadosClientesPotencial[[#This Row],[Previsão \nFechada em]] = \"Outubro\",DadosClientesPotencial[Ponderada \nPrevisão],0),\"\"),\"\")","v":""},{"$f":"IFERROR(IF(DadosClientesPotencial[[#This Row],[Previsão \nFechada em]] <>\"\",IF(DadosClientesPotencial[[#This Row],[Previsão \nFechada em]] = \"Novembro\",DadosClientesPotencial[Ponderada \nPrevisão],0),\"\"),\"\")","v":""},{"$f":"IFERROR(IF(DadosClientesPotencial[[#This Row],[Previsão \nFechada em]] <>\"\",IF(DadosClientesPotencial[[#This Row],[Previsão \nFechada em]] = \"Dezembro\",DadosClientesPotencial[Ponderada \nPrevisão],0),\"\"),\"\")","v":""}]
[null,{"$f":"IFERROR(_xlfn.SINGLE(IF(AND(DadosClientesPotencial[[#This Row],[Nome do cliente em potencial]] <> \"\",_xlfn.SINGLE( ROW(PrevisãoVendas[Nome do cliente em potencial]))<>Linha_inicial),DadosClientesPotencial[Nome do cliente em potencial], \"\")),\"\")","v":""},{"$f":"IFERROR(IF(DadosClientesPotencial[[#This Row],[Previsão \nFechada em]] <>\"\",IF(DadosClientesPotencial[[#This Row],[Previsão \nFechada em]] = \"Janeiro\",DadosClientesPotencial[Ponderada \nPrevisão],0),\"\"),\"\")","v":""},{"$f":"IFERROR(IF(DadosClientesPotencial[[#This Row],[Previsão \nFechada em]] <>\"\",IF(DadosClientesPotencial[[#This Row],[Previsão \nFechada em]] = \"Fevereiro\",DadosClientesPotencial[Ponderada \nPrevisão],0),\"\"),\"\")","v":""},{"$f":"IFERROR(IF(DadosClientesPotencial[[#This Row],[Previsão \nFechada em]] <>\"\",IF(DadosClientesPotencial[[#This Row],[Previsão \nFechada em]] = \"Março\",DadosClientesPotencial[Ponderada \nPrevisão],0),\"\"),\"\")","v":""},{"$f":"IFERROR(IF(DadosClientesPotencial[[#This Row],[Previsão \nFechada em]] <>\"\",IF(DadosClientesPotencial[[#This Row],[Previsão \nFechada em]] = \"Abril\",DadosClientesPotencial[Ponderada \nPrevisão],0),\"\"),\"\")","v":""},{"$f":"IFERROR(IF(DadosClientesPotencial[[#This Row],[Previsão \nFechada em]] <>\"\",IF(DadosClientesPotencial[[#This Row],[Previsão \nFechada em]] = \"Maio\",DadosClientesPotencial[Ponderada \nPrevisão],0),\"\"),\"\")","v":""},{"$f":"IFERROR(IF(DadosClientesPotencial[[#This Row],[Previsão \nFechada em]] <>\"\",IF(DadosClientesPotencial[[#This Row],[Previsão \nFechada em]] = \"Junho\",DadosClientesPotencial[Ponderada \nPrevisão],0),\"\"),\"\")","v":""},{"$f":"IFERROR(IF(DadosClientesPotencial[[#This Row],[Previsão \nFechada em]] <>\"\",IF(DadosClientesPotencial[[#This Row],[Previsão \nFechada em]] = \"Julho\",DadosClientesPotencial[Ponderada \nPrevisão],0),\"\"),\"\")","v":""},{"$f":"IFERROR(IF(DadosClientesPotencial[[#This Row],[Previsão \nFechada em]] <>\"\",IF(DadosClientesPotencial[[#This Row],[Previsão \nFechada em]] = \"Agosto\",DadosClientesPotencial[Ponderada \nPrevisão],0),\"\"),\"\")","v":""},{"$f":"IFERROR(IF(DadosClientesPotencial[[#This Row],[Previsão \nFechada em]] <>\"\",IF(DadosClientesPotencial[[#This Row],[Previsão \nFechada em]] = \"Setembro\",DadosClientesPotencial[Ponderada \nPrevisão],0),\"\"),\"\")","v":""},{"$f":"IFERROR(IF(DadosClientesPotencial[[#This Row],[Previsão \nFechada em]] <>\"\",IF(DadosClientesPotencial[[#This Row],[Previsão \nFechada em]] = \"Outubro\",DadosClientesPotencial[Ponderada \nPrevisão],0),\"\"),\"\")","v":""},{"$f":"IFERROR(IF(DadosClientesPotencial[[#This Row],[Previsão \nFechada em]] <>\"\",IF(DadosClientesPotencial[[#This Row],[Previsão \nFechada em]] = \"Novembro\",DadosClientesPotencial[Ponderada \nPrevisão],0),\"\"),\"\")","v":""},{"$f":"IFERROR(IF(DadosClientesPotencial[[#This Row],[Previsão \nFechada em]] <>\"\",IF(DadosClientesPotencial[[#This Row],[Previsão \nFechada em]] = \"Dezembro\",DadosClientesPotencial[Ponderada \nPrevisão],0),\"\"),\"\")","v":""}]
[null,{"$f":"IFERROR(_xlfn.SINGLE(IF(AND(DadosClientesPotencial[[#This Row],[Nome do cliente em potencial]] <> \"\",_xlfn.SINGLE( ROW(PrevisãoVendas[Nome do cliente em potencial]))<>Linha_inicial),DadosClientesPotencial[Nome do cliente em potencial], \"\")),\"\")","v":""},{"$f":"IFERROR(IF(DadosClientesPotencial[[#This Row],[Previsão \nFechada em]] <>\"\",IF(DadosClientesPotencial[[#This Row],[Previsão \nFechada em]] = \"Janeiro\",DadosClientesPotencial[Ponderada \nPrevisão],0),\"\"),\"\")","v":""},{"$f":"IFERROR(IF(DadosClientesPotencial[[#This Row],[Previsão \nFechada em]] <>\"\",IF(DadosClientesPotencial[[#This Row],[Previsão \nFechada em]] = \"Fevereiro\",DadosClientesPotencial[Ponderada \nPrevisão],0),\"\"),\"\")","v":""},{"$f":"IFERROR(IF(DadosClientesPotencial[[#This Row],[Previsão \nFechada em]] <>\"\",IF(DadosClientesPotencial[[#This Row],[Previsão \nFechada em]] = \"Março\",DadosClientesPotencial[Ponderada \nPrevisão],0),\"\"),\"\")","v":""},{"$f":"IFERROR(IF(DadosClientesPotencial[[#This Row],[Previsão \nFechada em]] <>\"\",IF(DadosClientesPotencial[[#This Row],[Previsão \nFechada em]] = \"Abril\",DadosClientesPotencial[Ponderada \nPrevisão],0),\"\"),\"\")","v":""},{"$f":"IFERROR(IF(DadosClientesPotencial[[#This Row],[Previsão \nFechada em]] <>\"\",IF(DadosClientesPotencial[[#This Row],[Previsão \nFechada em]] = \"Maio\",DadosClientesPotencial[Ponderada \nPrevisão],0),\"\"),\"\")","v":""},{"$f":"IFERROR(IF(DadosClientesPotencial[[#This Row],[Previsão \nFechada em]] <>\"\",IF(DadosClientesPotencial[[#This Row],[Previsão \nFechada em]] = \"Junho\",DadosClientesPotencial[Ponderada \nPrevisão],0),\"\"),\"\")","v":""},{"$f":"IFERROR(IF(DadosClientesPotencial[[#This Row],[Previsão \nFechada em]] <>\"\",IF(DadosClientesPotencial[[#This Row],[Previsão \nFechada em]] = \"Julho\",DadosClientesPotencial[Ponderada \nPrevisão],0),\"\"),\"\")","v":""},{"$f":"IFERROR(IF(DadosClientesPotencial[[#This Row],[Previsão \nFechada em]] <>\"\",IF(DadosClientesPotencial[[#This Row],[Previsão \nFechada em]] = \"Agosto\",DadosClientesPotencial[Ponderada \nPrevisão],0),\"\"),\"\")","v":""},{"$f":"IFERROR(IF(DadosClientesPotencial[[#This Row],[Previsão \nFechada em]] <>\"\",IF(DadosClientesPotencial[[#This Row],[Previsão \nFechada em]] = \"Setembro\",DadosClientesPotencial[Ponderada \nPrevisão],0),\"\"),\"\")","v":""},{"$f":"IFERROR(IF(DadosClientesPotencial[[#This Row],[Previsão \nFechada em]] <>\"\",IF(DadosClientesPotencial[[#This Row],[Previsão \nFechada em]] = \"Outubro\",DadosClientesPotencial[Ponderada \nPrevisão],0),\"\"),\"\")","v":""},{"$f":"IFERROR(IF(DadosClientesPotencial[[#This Row],[Previsão \nFechada em]] <>\"\",IF(DadosClientesPotencial[[#This Row],[Previsão \nFechada em]] = \"Novembro\",DadosClientesPotencial[Ponderada \nPrevisão],0),\"\"),\"\")","v":""},{"$f":"IFERROR(IF(DadosClientesPotencial[[#This Row],[Previsão \nFechada em]] <>\"\",IF(DadosClientesPotencial[[#This Row],[Previsão \nFechada em]] = \"Dezembro\",DadosClientesPotencial[Ponderada \nPrevisão],0),\"\"),\"\")","v":""}]
[null,"Total",{"$f":"SUBTOTAL(109,PrevisãoVendas[Janeiro \nPrevisão])","v":{"v":270000,"d":"R$ 270,000"}},{"$f":"SUBTOTAL(109,PrevisãoVendas[Fevereiro \nPrevisão])","v":{"v":20000,"d":"R$ 20,000"}},{"$f":"SUBTOTAL(109,PrevisãoVendas[Março \nPrevisão])","v":{"v":20000,"d":"R$ 20,000"}},{"$f":"SUBTOTAL(109,PrevisãoVendas[Abril \nPrevisão])","v":{"v":0,"d":"R$ 0"}},{"$f":"SUBTOTAL(109,PrevisãoVendas[Maio \nPrevisão])","v":{"v":0,"d":"R$ 0"}},{"$f":"SUBTOTAL(109,PrevisãoVendas[Junho \nPrevisão])","v":{"v":0,"d":"R$ 0"}},{"$f":"SUBTOTAL(109,PrevisãoVendas[Julho \nPrevisão])","v":{"v":0,"d":"R$ 0"}},{"$f":"SUBTOTAL(109,PrevisãoVendas[Agosto \nPrevisão])","v":{"v":0,"d":"R$ 0"}},{"$f":"SUBTOTAL(109,PrevisãoVendas[Setembro \nPrevisão])","v":{"v":0,"d":"R$ 0"}},{"$f":"SUBTOTAL(109,PrevisãoVendas[Outubro \nPrevisão])","v":{"v":0,"d":"R$ 0"}},{"$f":"SUBTOTAL(109,PrevisãoVendas[Novembro \nPrevisão])","v":{"v":0,"d":"R$ 0"}},{"$f":"SUBTOTAL(109,PrevisãoVendas[Dezembro \nPrevisão])","v":{"v":0,"d":"R$ 0"}}]
[null,"Total Acumulado",{"$f":"C14","v":{"v":270000,"d":"R$ 270,000"}},{"$f":"C15+D14","v":{"v":290000,"d":"R$ 290,000"}},{"$f":"D15+E14","v":{"v":310000,"d":"R$ 310,000"}},{"$f":"E15+F14","v":{"v":310000,"d":"R$ 310,000"}},{"$f":"F15+G14","v":{"v":310000,"d":"R$ 310,000"}},{"$f":"G15+H14","v":{"v":310000,"d":"R$ 310,000"}},{"$f":"H15+I14","v":{"v":310000,"d":"R$ 310,000"}},{"$f":"I15+J14","v":{"v":310000,"d":"R$ 310,000"}},{"$f":"J15+K14","v":{"v":310000,"d":"R$ 310,000"}},{"$f":"K15+L14","v":{"v":310000,"d":"R$ 310,000"}},{"$f":"L15+M14","v":{"v":310000,"d":"R$ 310,000"}},{"$f":"M15+N14","v":{"v":310000,"d":"R$ 310,000"}}]

{"sheet":"Previsão Ponderada Mensal","index":2,"n_rows":3,"n_cols":2,"rows_kept":3,"merged":[[0,5,0,9]]}
[]
[]
[null,"Previsão Ponderada Mensal"]